fUSD/lending_fUSD_20260518
["ID","MTS","AMOUNT","RATE_DAILY","PERIOD"]
[422548495,1779059443000,-152.0,0.0002,2]
[422548496,1779059443000,-3307.672545,0.0002,2]
[422548498,1779059443000,-2000.0,0.0002,2]
[422548490,1779059443000,-537.81326358,0.0002,7]
[422548492,1779059443000,-1058.5393221,0.0002,2]
[422548481,1779059443000,-7079.0099119,0.0002,2]
[422548503,1779059443000,-175.87182682,0.0002,2]
[422548518,1779059443000,-583.0,0.0002005,2]
[422548494,1779059443000,-13089.48861455,0.0002,2]
[422548510,1779059443000,-3000.0,0.0002,2]
[422548513,1779059443000,-2000.0,0.0002002,2]
[422548509,1779059443000,-609.0,0.0002,2]
[422548514,1779059443000,-2861.49339,0.0002003,2]
[422548512,1779059443000,-2000.0,0.0002001,2]
[422548507,1779059443000,-194.168,0.0002,2]
[422548515,1779059443000,-2129.0,0.00020042,2]
[422548511,1779059443000,-1000.0,0.0002,7]
[422548504,1779059443000,-175.87182683,0.0002,2]
[422548508,1779059443000,-2323.0,0.0002,2]
[422548505,1779059443000,-200.0,0.0002,10]
[422548506,1779059443000,-400.0,0.0002,2]
[422548516,1779059443000,-246.0,0.0002005,2]
[422548579,1779059444000,-151.0,0.0002105,2]
[422548584,1779059444000,-3244.34,0.00021273,2]
[422548576,1779059444000,-544.0,0.0002105,2]
[422548585,1779059444000,-747.8093786,0.00021438,2]
[422548578,1779059444000,-158.0,0.0002105,2]
[422548587,1779059444000,-209.40437684,0.00021439,2]
[422548586,1779059444000,-599.60298507,0.00021438,2]
[422548583,1779059444000,-850.21,0.00021273,2]
[422548591,1779059444000,-2494.55939289,0.00021439,2]
[422548581,1779059444000,-1200.0,0.0002127,2]
[422548588,1779059444000,-200.0,0.00021439,2]
[422548592,1779059444000,-58336.63162231,0.000215,2]
[422548589,1779059444000,-251.11897888,0.00021439,2]
[422548593,1779059444000,-225.15420585,0.000215,2]
[422548577,1779059444000,-174.0,0.0002105,2]
[422548590,1779059444000,-1712.93078312,0.00021439,2]
[422548594,1779059444000,-250.0,0.00021633,2]
[422548597,1779059444000,-250.0,0.00021633,2]
[422548582,1779059444000,-450.0,0.0002127,7]
[422548580,1779059444000,-2624.0,0.0002105,2]
[422548565,1779059444000,-1230.48948908,0.00021,7]
[422548575,1779059444000,-182.0,0.0002105,2]
[422548595,1779059444000,-250.0,0.00021633,2]
[422548556,1779059444000,-22962.33398337,0.000207,2]
[422548557,1779059444000,-923.85,0.000208,2]
[422548558,1779059444000,-201.93286099,0.00020891,2]
[422548560,1779059444000,-242.15909246,0.00020891,2]
[422548559,1779059444000,-200.0,0.00020891,2]
[422548554,1779059444000,-169.84,0.00020639,2]
[422548561,1779059444000,-1651.81367706,0.00020891,2]
[422548562,1779059444000,-2405.55389864,0.00020891,2]
[422548572,1779059444000,-583.0,0.0002105,2]
[422548564,1779059444000,-199.54371661,0.00021,2]
[422548563,1779059444000,-1209.03378583,0.00021,2]
[422548573,1779059444000,-776.0,0.0002105,2]
[422548566,1779059444000,-160.0,0.00021,7]
[422548567,1779059444000,-10000.0,0.00021,10]
[422548569,1779059444000,-215.0785988,0.00021,7]
[422548571,1779059444000,-160.0,0.0002105,2]
[422548570,1779059444000,-246.0,0.0002105,2]
[422548568,1779059444000,-215.0785988,0.00021,10]
[422548574,1779059444000,-154.0,0.0002105,2]
[422548555,1779059444000,-2000.0,0.00020669,2]
[422548596,1779059444000,-250.0,0.00021633,2]
[422548601,1779059444000,-250.0,0.00021633,2]
[422548617,1779059444000,-3075.54,0.00021918,2]
[422548621,1779059444000,-151.0,0.00021918,2]
[422548620,1779059444000,-151.0,0.00021918,2]
[422548624,1779059444000,-324.44835277,0.00021918,2]
[422548622,1779059444000,-151.0,0.00021918,2]
[422548625,1779059444000,-217.15233878,0.00021987,2]
[422548623,1779059444000,-6321.74,0.00021918,30]
[422548630,1779059444000,-2967.91846963,0.00022,4]
[422548628,1779059444000,-2586.85809042,0.00021987,2]
[422548631,1779059444000,-461.80134518,0.00022,4]
[422548637,1779059444000,-852.26507803,0.00022,4]
[422548633,1779059444000,-220.14943638,0.00022,4]
[422548634,1779059444000,-2087.84036619,0.00015106,2]
[422548636,1779059444000,-3775.12684544,0.00022,4]
[422548635,1779059444000,-404.97779704,0.00022,4]
[422548638,1779059444000,-151.0,0.00014823,2]
[422548640,1779059444000,-204602.79535986,0.00022,4]
[422548639,1779059444000,-622.0,0.00020196,7]
[422548632,1779059444000,-997.0,0.00020196,7]
[422548629,1779059444000,-500.8620181,0.00021999,2]
[422548626,1779059444000,-200.0,0.00021987,2]
[422548619,1779059444000,-1004.62,0.00021918,2]
[422548598,1779059444000,-250.0,0.00021633,2]
[422548600,1779059444000,-250.0,0.00021633,2]
[422548603,1779059444000,-225.0,0.00021633,2]
[422548627,1779059444000,-260.4103811,0.00021987,2]
[422548609,1779059444000,-1866.06,0.00021836,2]
[422548604,1779059444000,-3620.0,0.0002171,2]
[422548607,1779059444000,-150.0,0.00021792,2]
[422548613,1779059444000,-228.0,0.00021841,2]
[422548610,1779059444000,-150.0,0.00021841,2]
[422548602,1779059444000,-250.0,0.00021633,2]
[422548606,1779059444000,-275.0,0.00021792,2]
[422548612,1779059444000,-150.0,0.00021841,2]
[422548618,1779059444000,-5000.0,0.00021918,2]
[422548616,1779059444000,-261.1828,0.00021918,2]
[422548615,1779059444000,-151.0,0.00021918,2]
[422548599,1779059444000,-250.0,0.00021633,2]
[422548608,1779059444000,-199.0,0.00021792,2]
[422548614,1779059444000,-506.08708712,0.0002186,7]
[422548611,1779059444000,-150.0,0.00021841,2]
[422548605,1779059444000,-6963.0584689,0.00021722,2]
[422548645,1779059445000,-281.62110048,0.00022,4]
[422548641,1779059445000,-767.709577,0.00015773,2]
[422548642,1779059445000,-195.93765564,0.00017083,2]
[422548643,1779059445000,-233.08676736,0.00022,4]
[422548644,1779059445000,-4243.11677862,0.00022,4]
[422548648,1779059446000,-779.00159121,0.00017087,2]
[422548647,1779059446000,-500.0,0.00017087,2]
[422548646,1779059446000,-258.33496915,0.00017087,2]
[422548728,1779059458000,2000.0,0.00029959,120]
[422548729,1779059705000,167.0,0.00020991,120]
[422548730,1779059707000,167.0,0.0002204,120]
[422548731,1779059708000,167.0,0.00023142,120]
[422548732,1779059709000,167.0,0.00024299,120]
[422548736,1779060313000,1708.0,0.0003,120]
[422548737,1779060540000,1000.0,0.00030136,120]
[422548740,1779060632000,-700.0,0.00013151,2]
[422548742,1779060632000,-144.3940699,0.00013152,2]
[422548741,1779060632000,-150.0,0.00013151,2]
[422548739,1779060632000,-500.0,0.00013151,2]
[422548743,1779060632000,-158410.5690301,0.00013152,2]
[422548745,1779060632000,-170.38306813,0.00013252,2]
[422548746,1779060632000,-55630.02440906,0.00013252,2]
[422548744,1779060632000,-170.38306813,0.00013252,2]
[422548782,1779060638000,-2447.27720269,0.00015,2]
[422548780,1779060638000,-17342.44378636,0.00015,2]
[422548779,1779060638000,-150.0,0.00015,2]
[422548778,1779060638000,-3316.11994332,0.00015,2]
[422548776,1779060638000,-265.0,0.00014962,2]
[422548781,1779060638000,-150.0,0.00015,2]
[422548783,1779060638000,-200.0,0.0001541,2]
[422548784,1779060638000,-433.0,0.00015453,2]
[422548790,1779060638000,-164.07,0.00016118,2]
[422548788,1779060638000,-1575.07,0.00016116,2]
[422548786,1779060638000,-1049.0,0.00015913,2]
[422548787,1779060638000,-219.95,0.00016,2]
[422548777,1779060638000,-150.0,0.00015,2]
[422548797,1779060638000,-3365.372668,0.0001658,2]
[422548792,1779060638000,-1755.0,0.00016438,2]
[422548796,1779060638000,-267.27033526,0.00016538,2]
[422548791,1779060638000,-2000.0,0.00016161,2]
[422548793,1779060638000,-267.27033526,0.00016438,2]
[422548785,1779060638000,-6226.1046706,0.0001547,2]
[422548774,1779060638000,-13278.69264661,0.00014836,2]
[422548769,1779060638000,-300.0,0.00014576,2]
[422548773,1779060638000,-352.0,0.00014764,2]
[422548794,1779060638000,-229.97,0.00016438,2]
[422548755,1779060638000,-43465.15129094,0.00013252,2]
[422548754,1779060638000,-767.709577,0.00013186,2]
[422548756,1779060638000,-6801.3071,0.00013252,2]
[422548757,1779060638000,-3365.37266808,0.00013289,2]
[422548758,1779060638000,-255.0,0.00014256,2]
[422548759,1779060638000,-150.0,0.00014347,2]
[422548762,1779060638000,-2500.0,0.00014466,2]
[422548760,1779060638000,-1680.0,0.00014466,2]
[422548761,1779060638000,-2500.0,0.00014466,2]
[422548765,1779060638000,-780.23658816,0.00014466,2]
[422548763,1779060638000,-2500.0,0.00014466,2]
[422548767,1779060638000,-300.0,0.00014576,2]
[422548770,1779060638000,-300.0,0.00014576,2]
[422548764,1779060638000,-2500.0,0.00014466,2]
[422548766,1779060638000,-3082.94,0.00014576,2]
[422548768,1779060638000,-300.0,0.00014576,2]
[422548772,1779060638000,-500.0,0.00014612,2]
[422548771,1779060638000,-175.3435528,0.00014576,2]
[422548775,1779060638000,-3365.372668,0.00014935,2]
[422548795,1779060638000,-3244.34,0.00016474,2]
[422548847,1779060638000,-1173.80795372,0.00017897,2]
[422548800,1779060638000,-152.0,0.00016901,2]
[422548828,1779060638000,-496.20088671,0.00017897,2]
[422548831,1779060638000,-1173.80795372,0.00017897,2]
[422548829,1779060638000,-440.42793304,0.00017897,2]
[422548830,1779060638000,-200.0,0.00017897,2]
[422548833,1779060638000,-1173.80795372,0.00017897,2]
[422548832,1779060638000,-1173.80795372,0.00017897,2]
[422548839,1779060638000,-1173.80795372,0.00017897,2]
[422548834,1779060638000,-1173.80795372,0.00017897,2]
[422548837,1779060638000,-1173.80795372,0.00017897,2]
[422548840,1779060638000,-1173.80795372,0.00017897,2]
[422548843,1779060638000,-1173.80795372,0.00017897,2]
[422548836,1779060638000,-1173.80795372,0.00017897,2]
[422548841,1779060638000,-1173.80795372,0.00017897,2]
[422548835,1779060638000,-1173.80795372,0.00017897,2]
[422548838,1779060638000,-1173.80795372,0.00017897,2]
[422548844,1779060638000,-1173.80795372,0.00017897,2]
[422548846,1779060638000,-1173.80795372,0.00017897,2]
[422548845,1779060638000,-1173.80795372,0.00017897,2]
[422548799,1779060638000,-736.0,0.00016755,2]
[422548827,1779060638000,-1173.80795372,0.00017897,2]
[422548822,1779060638000,-166.66,0.00017864,2]
[422548842,1779060638000,-1173.80795372,0.00017897,2]
[422548821,1779060638000,-243.49,0.00017644,2]
[422548825,1779060638000,-1173.80795372,0.00017897,2]
[422548801,1779060638000,-475.0,0.00017233,2]
[422548803,1779060638000,-500.0,0.00017288,2]
[422548802,1779060638000,-201.55066492,0.00017272,2]
[422548804,1779060638000,-591.0,0.00017372,2]
[422548806,1779060638000,-1000.0,0.000175,2]
[422548805,1779060638000,-308.0,0.000175,2]
[422548809,1779060638000,-746.0,0.00017534,2]
[422548807,1779060638000,-314.0,0.000175,2]
[422548798,1779060638000,-169.84,0.00016712,2]
[422548810,1779060638000,-794.74352106,0.00017625,2]
[422548814,1779060638000,-150.0,0.00017643,2]
[422548812,1779060638000,-852.27,0.00017626,2]
[422548818,1779060638000,-625.0,0.00017643,2]
[422548816,1779060638000,-1223.0,0.00017643,2]
[422548820,1779060638000,-927.0,0.00017643,2]
[422548823,1779060638000,-5764.84771648,0.00017886,2]
[422548824,1779060638000,-500.0,0.00017897,2]
[422548808,1779060638000,-200.0,0.000175,2]
[422548826,1779060638000,-500.0,0.00017897,2]
[422548895,1779060639000,-3365.372668,0.00018226,2]
[422548892,1779060639000,-2000.0,0.00018181,2]
[422548890,1779060639000,-500.0,0.00018029,2]
[422548891,1779060639000,-1252.0,0.00018162,2]
[422548889,1779060639000,-408.91666537,0.00018,2]
[422548886,1779060639000,-150.0,0.00017933,2]
[422548885,1779060639000,-150.0,0.00017933,2]
[422548887,1779060639000,-200.0,0.00017946,2]
[422548894,1779060639000,-408.91666537,0.000182,2]
[422548884,1779060639000,-21152.42594197,0.000179,2]
[422548879,1779060639000,-1173.80795372,0.00017897,2]
[422548880,1779060639000,-1173.80795372,0.00017897,2]
[422548888,1779060639000,-213.93907454,0.00018,2]
[422548893,1779060639000,-213.93907454,0.000182,2]
[422548898,1779060639000,-213.93907454,0.000184,2]
[422548899,1779060639000,-408.91666537,0.000184,2]
[422548900,1779060639000,-1755.0,0.0001841,2]
[422548901,1779060639000,-213.93907454,0.000185,2]
[422548897,1779060639000,-54636.46,0.00018356,2]
[422548904,1779060639000,-1326.97,0.00018591,2]
[422548906,1779060639000,-213.93907454,0.000187,2]
[422548902,1779060639000,-408.91666537,0.000185,2]
[422548908,1779060639000,-174.61919141,0.00018841,2]
[422548903,1779060639000,-175.7,0.00018577,2]
[422548910,1779060639000,-500.0,0.00018841,2]
[422548909,1779060639000,-200.0,0.00018841,2]
[422548905,1779060639000,-166.66,0.00018616,2]
[422548911,1779060639000,-721.12765535,0.00018841,2]
[422548883,1779060639000,-21152.42594197,0.000179,2]
[422548896,1779060639000,-166.66,0.0001824,2]
[422548878,1779060639000,-1173.80795372,0.00017897,2]
[422548859,1779060639000,-1173.80795372,0.00017897,2]
[422548881,1779060639000,-21152.42594199,0.000179,2]
[422548849,1779060639000,-1173.80795372,0.00017897,2]
[422548848,1779060639000,-1173.80795372,0.00017897,2]
[422548850,1779060639000,-1173.80795372,0.00017897,2]
[422548852,1779060639000,-1173.80795372,0.00017897,2]
[422548851,1779060639000,-1173.80795372,0.00017897,2]
[422548853,1779060639000,-1173.80795372,0.00017897,2]
[422548855,1779060639000,-1173.80795372,0.00017897,2]
[422548854,1779060639000,-1173.80795372,0.00017897,2]
[422548856,1779060639000,-1173.80795372,0.00017897,2]
[422548858,1779060639000,-1173.80795372,0.00017897,2]
[422548857,1779060639000,-1173.80795372,0.00017897,2]
[422548912,1779060639000,-500.0,0.00018841,2]
[422548860,1779060639000,-1173.80795372,0.00017897,2]
[422548861,1779060639000,-1173.80795372,0.00017897,2]
[422548882,1779060639000,-21152.42594197,0.000179,2]
[422548863,1779060639000,-1173.80795372,0.00017897,2]
[422548864,1779060639000,-1173.80795372,0.00017897,2]
[422548865,1779060639000,-1173.80795372,0.00017897,2]
[422548866,1779060639000,-1173.80795372,0.00017897,2]
[422548869,1779060639000,-1173.80795372,0.00017897,2]
[422548868,1779060639000,-1173.80795372,0.00017897,2]
[422548867,1779060639000,-1173.80795372,0.00017897,2]
[422548871,1779060639000,-1173.80795372,0.00017897,2]
[422548870,1779060639000,-1173.80795372,0.00017897,2]
[422548872,1779060639000,-1173.80795372,0.00017897,2]
[422548874,1779060639000,-1173.80795372,0.00017897,2]
[422548873,1779060639000,-1173.80795372,0.00017897,2]
[422548876,1779060639000,-1173.80795372,0.00017897,2]
[422548875,1779060639000,-1173.80795372,0.00017897,2]
[422548877,1779060639000,-1173.80795372,0.00017897,2]
[422548862,1779060639000,-1173.80795372,0.00017897,2]
[422548913,1779060639000,-500.0,0.00018841,2]
[422548907,1779060639000,-408.91666537,0.000187,2]
[422548915,1779060639000,-500.0,0.00018841,2]
[422548946,1779060639000,-151.0,0.00018841,2]
[422548952,1779060639000,-151.0,0.00018841,2]
[422548951,1779060639000,-151.0,0.00018841,2]
[422548954,1779060639000,-209.40437684,0.00018841,2]
[422548953,1779060639000,-151.0,0.00018841,2]
[422548955,1779060639000,-151.0,0.00018841,2]
[422548962,1779060639000,-151.0,0.00018841,2]
[422548956,1779060639000,-151.0,0.00018841,2]
[422548957,1779060639000,-151.0,0.00018841,2]
[422548961,1779060639000,-231.54239776,0.00018841,2]
[422548959,1779060639000,-151.0,0.00018841,2]
[422548958,1779060639000,-151.0,0.00018841,2]
[422548960,1779060639000,-151.0,0.00018841,2]
[422548963,1779060639000,-151.0,0.00018841,2]
[422548950,1779060639000,-151.0,0.00018841,2]
[422548965,1779060639000,-151.0,0.00018841,2]
[422548966,1779060639000,-152.0,0.00018841,2]
[422548967,1779060639000,-152.0,0.00018841,2]
[422548968,1779060639000,-152.0,0.00018841,2]
[422548969,1779060639000,-152.0,0.00018841,2]
[422548970,1779060639000,-152.0,0.00018841,2]
[422548975,1779060639000,-152.0,0.00018841,2]
[422548974,1779060639000,-152.0,0.00018841,2]
[422548972,1779060639000,-152.0,0.00018841,2]
[422548973,1779060639000,-743.50770149,0.00018841,2]
[422548976,1779060639000,-152.0,0.00018841,2]
[422548914,1779060639000,-500.0,0.00018841,2]
[422548979,1779060639000,-402.32486405,0.00018841,2]
[422548977,1779060639000,-152.0,0.00018841,2]
[422548978,1779060639000,-1000.0,0.00018841,2]
[422548964,1779060639000,-151.0,0.00018841,2]
[422548948,1779060639000,-151.0,0.00018841,2]
[422548971,1779060639000,-152.0,0.00018841,2]
[422548949,1779060639000,-151.0,0.00018841,2]
[422548947,1779060639000,-151.0,0.00018841,2]
[422548917,1779060639000,-200.0,0.00018841,2]
[422548919,1779060639000,-242.15909246,0.00018841,2]
[422548920,1779060639000,-500.0,0.00018841,2]
[422548918,1779060639000,-500.0,0.00018841,2]
[422548916,1779060639000,-500.0,0.00018841,2]
[422548921,1779060639000,-500.0,0.00018841,2]
[422548923,1779060639000,-500.0,0.00018841,2]
[422548924,1779060639000,-500.0,0.00018841,2]
[422548925,1779060639000,-158.69877943,0.00018841,2]
[422548926,1779060639000,-209.40437684,0.00018841,2]
[422548928,1779060639000,-1428.38747117,0.00018841,2]
[422548927,1779060639000,-578.20924308,0.00018841,2]
[422548929,1779060639000,-151.0,0.00018841,2]
[422548934,1779060639000,-261.28268251,0.00018841,2]
[422548922,1779060639000,-500.0,0.00018841,2]
[422548933,1779060639000,-151.0,0.00018841,2]
[422548930,1779060639000,-2080.17592889,0.00018841,2]
[422548945,1779060639000,-151.0,0.00018841,2]
[422548942,1779060639000,-151.0,0.00018841,2]
[422548941,1779060639000,-151.0,0.00018841,2]
[422548939,1779060639000,-151.0,0.00018841,2]
[422548938,1779060639000,-151.0,0.00018841,2]
[422548943,1779060639000,-279.9045709,0.00018841,2]
[422548937,1779060639000,-151.0,0.00018841,2]
[422548935,1779060639000,-151.0,0.00018841,2]
[422548940,1779060639000,-151.0,0.00018841,2]
[422548944,1779060639000,-151.0,0.00018841,2]
[422548932,1779060639000,-151.0,0.00018841,2]
[422548936,1779060639000,-151.0,0.00018841,2]
[422548931,1779060639000,-151.0,0.00018841,2]
[422549013,1779060640000,-221.0,0.00019779,2]
[422549023,1779060640000,-2236.95670848,0.00019937,2]
[422549011,1779060640000,-2129.0,0.00019688,2]
[422549010,1779060640000,-151.0,0.00019391,2]
[422549012,1779060640000,-166.66,0.00019745,2]
[422549016,1779060640000,-301.0,0.00019779,2]
[422549015,1779060640000,-273.0,0.00019779,2]
[422549014,1779060640000,-273.0,0.00019779,2]
[422549018,1779060640000,-200.0,0.000199,2]
[422549020,1779060640000,-200.0,0.00019937,2]
[422549019,1779060640000,-187.78006525,0.00019937,2]
[422549017,1779060640000,-3365.372668,0.00019872,2]
[422549032,1779060640000,-175.87182682,0.0002,2]
[422549026,1779060640000,-2068.27,0.00019968,2]
[422549024,1779060640000,-225.18697532,0.00019937,2]
[422549022,1779060640000,-1536.04360649,0.00019937,2]
[422549025,1779060640000,-276.08,0.00019968,2]
[422549031,1779060640000,-175.87182682,0.0002,2]
[422549029,1779060640000,-152.0,0.0002,2]
[422549027,1779060640000,-221.0,0.0002,2]
[422549033,1779060640000,-175.87182682,0.0002,2]
[422549034,1779060640000,-175.87182682,0.0002,2]
[422549036,1779060640000,-524.0,0.0002,2]
[422549035,1779060640000,-175.87182683,0.0002,2]
[422549009,1779060640000,-914.14542479,0.00019389,2]
[422549021,1779060640000,-225.18697532,0.00019937,2]
[422549005,1779060640000,-1481.23780761,0.00019389,2]
[422548993,1779060640000,-15000.0,0.00019101,4]
[422549006,1779060640000,-2157.14243826,0.00019389,2]
[422549037,1779060640000,-698.0,0.0002,2]
[422548980,1779060640000,-169.23,0.0001886,2]
[422548981,1779060640000,-169.23,0.0001886,2]
[422548984,1779060640000,-151.0,0.00018896,2]
[422548983,1779060640000,-178.344,0.00018864,2]
[422548982,1779060640000,-1796.739,0.00018864,2]
[422548985,1779060640000,-6226.10467054,0.0001893,2]
[422548988,1779060640000,-151.0,0.00019006,2]
[422548986,1779060640000,-151.0,0.00018951,2]
[422548987,1779060640000,-166.66,0.00018993,2]
[422548990,1779060640000,-15000.0,0.00019101,4]
[422548989,1779060640000,-151.0,0.00019061,2]
[422549008,1779060640000,-217.15233878,0.00019389,2]
[422548991,1779060640000,-15000.0,0.00019101,4]
[422548994,1779060640000,-1171.06304959,0.00019101,4]
[422548996,1779060640000,-151.0,0.00019171,2]
[422549000,1779060640000,-166.66,0.00019369,2]
[422548997,1779060640000,-151.0,0.00019226,2]
[422549001,1779060640000,-181.08010149,0.00019389,2]
[422549002,1779060640000,-205.94293675,0.00019389,2]
[422548995,1779060640000,-151.0,0.00019116,2]
[422548998,1779060640000,-151.0,0.00019281,2]
[422548999,1779060640000,-151.0,0.00019336,2]
[422549003,1779060640000,-200.0,0.00019389,2]
[422549004,1779060640000,-217.15233878,0.00019389,2]
[422549007,1779060640000,-365.41690447,0.00019389,2]
[422548992,1779060640000,-15000.0,0.00019101,4]
[422549038,1779060640000,-200.19,0.0002,2]
[422549088,1779060640000,-3000.0,0.00020899,2]
[422549040,1779060640000,-154.0,0.0002,2]
[422549073,1779060640000,-150.0,0.0002058,2]
[422549069,1779060640000,-2771.76,0.00020548,2]
[422549074,1779060640000,-150.0,0.0002058,2]
[422549077,1779060640000,-150.0,0.0002058,2]
[422549076,1779060640000,-150.0,0.0002058,2]
[422549075,1779060640000,-150.0,0.0002058,2]
[422549078,1779060640000,-288.0,0.0002058,2]
[422549081,1779060640000,-1223.0,0.00020643,2]
[422549080,1779060640000,-150.0,0.00020643,2]
[422549079,1779060640000,-169.84,0.00020639,2]
[422549082,1779060640000,-625.0,0.00020643,2]
[422549083,1779060640000,-927.0,0.00020643,2]
[422549071,1779060640000,-970.0,0.00020549,7]
[422549084,1779060640000,-5000.0,0.000208,2]
[422549086,1779060640000,-676.89599728,0.00020807,2]
[422549085,1779060640000,-2662.81497595,0.000208,2]
[422549093,1779060640000,-950957.56987174,0.000209,2]
[422549089,1779060640000,-3000.0,0.00020899,7]
[422549090,1779060640000,-3000.0,0.00020899,12]
[422549097,1779060640000,-1220.95339742,0.000209,2]
[422549091,1779060640000,-839.06718577,0.00020899,17]
[422549092,1779060640000,-776.0,0.000209,5]
[422549094,1779060640000,-8680.78821711,0.000209,2]
[422549096,1779060640000,-1207.69684885,0.000209,2]
[422549095,1779060640000,-274.60866579,0.000209,2]
[422549041,1779060640000,-182.0,0.0002,2]
[422549087,1779060640000,-506.18718834,0.00020888,2]
[422549072,1779060640000,-512.0,0.00020549,7]
[422549070,1779060640000,-376.0,0.00020549,7]
[422549066,1779060640000,-3980.73,0.00020548,2]
[422549046,1779060640000,-158.0,0.0002,2]
[422549039,1779060640000,-158878.0,0.0002,2]
[422549043,1779060640000,-15000.0,0.0002,2]
[422549042,1779060640000,-544.0,0.0002,2]
[422549045,1779060640000,-174.0,0.0002,2]
[422549044,1779060640000,-6111.0,0.0002,2]
[422549047,1779060640000,-151.0,0.0002,2]
[422549048,1779060640000,-2624.0,0.0002,2]
[422549049,1779060640000,-200.0,0.0002,10]
[422549050,1779060640000,-22392.66,0.0002,2]
[422549051,1779060640000,-154.04735663,0.0002,20]
[422549060,1779060640000,-200.0,0.00020485,2]
[422549052,1779060640000,-300.0,0.000201,10]
[422549055,1779060640000,-152.0,0.00020297,7]
[422549058,1779060640000,-1755.0,0.00020381,2]
[422549054,1779060640000,-152.0,0.00020256,7]
[422549059,1779060640000,-194.72792766,0.00020485,2]
[422549053,1779060640000,-2000.0,0.00020201,2]
[422549057,1779060640000,-600.0,0.00020356,7]
[422549056,1779060640000,-1200.0,0.00020356,7]
[422549061,1779060640000,-233.51889341,0.00020485,2]
[422549063,1779060640000,-2319.72410669,0.00020485,2]
[422549062,1779060640000,-1592.87721993,0.00020485,2]
[422549064,1779060640000,-235.23669479,0.00020485,2]
[422549067,1779060640000,-3980.73,0.00020548,2]
[422549065,1779060640000,-3980.73,0.00020548,2]
[422549068,1779060640000,-3980.72,0.00020548,2]
[422549102,1779060641000,-2206.12181778,0.000209,2]
[422549100,1779060641000,-110.5101328,0.00020549,7]
[422549098,1779060641000,-215.0785988,0.00013404,2]
[422549103,1779060641000,-426.02784794,0.000209,2]
[422549104,1779060641000,-7593.48537264,0.000209,2]
[422549101,1779060641000,-1209.48986691,0.000209,2]
[422549099,1779060641000,-173.4898672,0.00020549,7]
[422549112,1779060643000,-3952.2,0.000209,2]
[422549113,1779060643000,-10140.44770967,0.000209,2]
[422549111,1779060643000,-796.83667828,0.000209,2]
[422549150,1779060646000,-10761.0499259,0.000209,2]
[422549152,1779060646000,-1526.6587061,0.000209,2]
[422549149,1779060646000,-3632.0,0.00018613,2]
[422549148,1779060646000,-202.47657231,0.00015613,2]
[422549147,1779060646000,-1097.875,0.00015613,2]
[422549145,1779060646000,-389.14842769,0.00015613,2]
[422549146,1779060646000,-1942.5,0.00015613,2]
[422549151,1779060646000,-354.01,0.00016438,2]
[422549169,1779060686000,196.2,0.00027013,120]
[422549170,1779060686000,196.2,0.00029468,120]
[422549173,1779060855000,163.5957,0.00030137,120]
[422549175,1779061035000,1422.03,0.0003013,120]
[422549177,1779061036000,1422.02,0.0003013,120]
[422549176,1779061036000,1422.03,0.0003013,120]
[422549178,1779061203000,167.11,8.689e-05,2]
[422549181,1779061619000,-208.48490792,0.00012962,2]
[422549180,1779061619000,-167.11,0.00011472,2]
[422549182,1779061619000,-88.95185064,0.0001297,2]
[422549183,1779061740000,1000.0,0.00030136,120]
[422549216,1779061831000,-246128.41941839,0.00012952,2]
[422549219,1779061831000,-43337.48638944,0.00012952,2]
[422549215,1779061831000,-7141.8686,0.00012952,2]